Cogmind - Beta 17.1 @@@ ROGUE MODE // 2026.08.25 @ 20:56:24 Player: st-3v1 Result: Destroyed by Explosive Trap Performance ------------- Evolutions (2) 1000 Regions Visited (6) 1200 Robots Destroyed (73) 365 Value Destroyed (1886) 1886 Prototype IDs (11) 220 Alien Tech Used (0) 0 Bonus (212) 212 TOTAL SCORE: 4883 Bonus ------- Follower Combat Kills 216 Friendly Fire -4 Cogmind --------- Core Integrity 0/550 Matter 95/300 Energy 279/280 System Corruption 4% Temperature Cool (0) Movement Rolling (120) Ox2 Location -8/Storage Parts ------- > --- POWER (1) -------- Cooled Ion Engine > --- PROPULSION (4) --- Light Treads Light Treads Armored Treads Armored Wheel > --- UTILITY (4) ------ Large Storage Unit Experimental Sensor Array Improved Signal Interpreter Hacking Suite > --- WEAPON (2) ------- Spread Laser Scythe > --- INVENTORY (15) --- Light Nuclear Core Aerolev Unit Cooled Airjet Cooled Airjet Cooled Airjet Cooled Airjet Advanced Beam Rifle Advanced Beam Rifle Advanced Beam Rifle Heavy Assault Rifle Heavy Assault Rifle Improved Assault Rifle Advanced EMP Blaster Advanced EMP Blaster Improved Grenade Launcher Peak State ------------ > --- POWER ------------ Cooled Ion Engine > --- PROPULSION ------- Light Treads Light Treads Armored Treads Armored Wheel > --- UTILITY ---------- Large Storage Unit Experimental Sensor Array Improved Signal Interpreter Hacking Suite > --- WEAPON ----------- Spread Laser Scythe > --- INVENTORY -------- Light Nuclear Core Aerolev Unit Cooled Airjet Cooled Airjet Cooled Airjet Cooled Airjet Advanced Beam Rifle Advanced Beam Rifle Advanced Beam Rifle Heavy Assault Rifle Heavy Assault Rifle Improved Assault Rifle Advanced EMP Blaster Advanced EMP Blaster Improved Grenade Launcher [Rating: 36] Favorites ----------- Power Ion Engine Engine Ion Engine Power Core Light Nuclear Core Propulsion Light Treads Treads Light Treads Wheel Armored Wheel Hover Unit Aerolev Unit Utility Large Storage Unit Device Seismic Detector Storage Large Storage Unit Processor Improved Signal Interpreter Hackware Hacking Suite Protection Improved Light Armor Plating Weapon Spread Laser Energy Gun Spread Laser Energy Cannon Advanced Beam Cannon Ballistic Gun Assault Rifle Launcher Grenade Launcher Slashing Weapon Scythe Build | -11 -10 -10 -10 -9 -8 -8 ------- Run | Yrd Mat Min Exi Min Mat Sto Slots Evolved 4 | . . . . . 4 . Power . | . . . . . . . Propulsion 2 | . . . . . 2 . Utility 2 | . . . . . 2 . Weapon . | . . . . . . . Parts Attached 63 | 8 7 5 . 2 19 22 Power 7 | 1 2 . . 1 1 2 Engine 5 | 1 2 . . . . 2 Core 2 | . . . . 1 1 . Reactor . | . . . . . . . Propulsion 24 | 2 . 3 . . 11 8 Treads 21 | 2 . 2 . . 10 7 Leg . | . . . . . . . Wheel 1 | . . 1 . . . . Hover 2 | . . . . . 1 1 Flight . | . . . . . . . Utility 13 | 2 1 1 . 1 3 5 Device 5 | 1 . 1 . 1 1 1 Storage 2 | 1 1 . . . . . Processor 1 | . . . . . . 1 Hackware 1 | . . . . . . 1 Protection 4 | . . . . . 2 2 Artifact . | . . . . . . . Weapon 19 | 3 4 1 . . 4 7 Energy Gun 10 | 2 3 1 . . 1 3 Energy Cannon 1 | . . . . . 1 . Ballistic Gun 3 | 1 . . . . 1 1 Ballistic Cannon . | . . . . . . . Launcher 4 | . 1 . . . 1 2 Special Weapon . | . . . . . . . Impact Weapon . | . . . . . . . Slashing Weapon 1 | . . . . . . 1 Piercing Weapon . | . . . . . . . Special Melee Weapon . | . . . . . . . Unidentified Prototypes 11 | . . . . . 3 8 Parts Lost 17 | . 1 2 . . 3 11 Power 2 | . 1 . . . . 1 Propulsion 6 | . . 1 . . 1 4 Utility 6 | . . 1 . . 1 4 Weapon 3 | . . . . . 1 2 Highest Loss Streak 8 | . 1 2 . . 3 8 To Critical Strikes . | . . . . . . . Average Backups 11 | . 6 10 12 14 14 13 Power . | . . 1 1 . . . Propulsion 2 | . 1 1 2 2 4 5 Utility 1 | . . 1 2 2 3 1 Weapon 6 | . 3 7 7 7 6 6 Tool/Special . | . . . . . . . Unused Backups 12 | . . . . . 1 11 Power . | . . . . . . . Propulsion 3 | . . . . . . 3 Utility 2 | . . . . . . 2 Weapon 7 | . . . . . 1 6 Tool/Special . | . . . . . . . Average Slot Usage (%) 96 | . 97 98 100 100 91 90 Engine 8 | . 12 14 14 9 . . Core 3 | . . . . 4 9 7 Treads 28 | . 27 27 28 28 35 26 Device 12 | . 14 13 14 14 11 9 Storage 12 | . 14 14 14 14 9 9 Protection 2 | . . . . . 8 4 Energy Gun 13 | . 15 18 14 14 9 9 Ballistic Gun 9 | . 12 9 14 14 4 3 Peak Build Rating 36 | 7 10 10 10 13 31 36 Average Rating 15 | 5 8 9 10 10 26 28 On Entrance 10 | . 7 10 10 10 13 26 Avg Prop Armor Cover (%) 22 | . . . . . . 22 Naked Turns . | . . . . . . . Heaviest Build 51 | 15 32 32 31 31 51 47 Greatest Support 80 | 40 40 40 40 40 80 80 Greatest Overweight (x) 2 | . . 1 . . . 2 Average Overweight (x) . | . . . . . . 1 Largest Inventory Capacity 15 | 8 15 15 15 15 15 15 Average Capacity 14 | 7 12 15 15 15 15 15 Most Carried 15 | 1 11 12 12 15 15 15 Average Carried 11 | . 6 10 12 14 14 13 Final Capacity 15 | 8 15 15 15 15 15 15 Final Carried 15 | 1 11 12 12 15 15 15 Class Distribution -------------------- 81% | Mutant 18% | Scavenger-Mutant Dominant Class ---------------- Mutant | -10/Materials Mutant | -10/Mines Mutant | -10/Exiles Mutant | -9/Mines Mutant | -8/Materials Scavenger-Mutant | -8/Storage Resources | -11 -10 -10 -10 -9 -8 -8 ----------- Run | Yrd Mat Min Exi Min Mat Sto Matter Collected 1508 | 292 266 155 . 102 291 402 Remotely . | . . . . . . . Salvage Created 2355 | 100 541 115 . 131 675 793 Parts 143 | 5 26 3 . 13 43 53 Haulers Intercepted 8 | . 2 . . . 3 3 Recyclers Shooed 2 | . . . . 1 . 1 Parts Field Recycled . | . . . . . . . Retrieved Matter . | . . . . . . . Parts Self-Destructed . | . . . . . . . Prevented . | . . . . . . . Parts Restored . | . . . . . . . Kills | -11 -10 -10 -10 -9 -8 -8 ------- Run | Yrd Mat Min Exi Min Mat Sto Combat Hostiles Destroyed 67 | . 16 7 . 3 15 26 Melee 2 | . . . . . . 2 Guns 35 | . 10 6 . 3 8 8 Cannons 3 | . . . . . 3 . AOE 27 | . 6 1 . . 4 16 Classes Destroyed 11 | 2 3 1 . 2 1 2 Worker 6 | . . . . 1 . 5 Tunneler 3 | 1 . . . 2 . . Hauler 8 | . 2 . . . 3 3 Recycler 4 | 1 . 1 . . 2 . Watcher 1 | . . . . . . 1 Swarmer 14 | . 6 . . . 5 3 Grunt 26 | . 10 3 . 2 6 5 Duelist 1 | . . . . 1 . . Sentry 9 | . . . . . 4 5 Demolisher 1 | . . . . . . 1 Assembled 16 | . . 4 . . . 12 Best Kill Streak 11 | 2 6 3 . 2 8 11 Combat Bots Only 11 | . 6 2 . 2 6 11 Max Kills in Single Turn 7 | 1 3 2 . 1 5 7 Gunslinging . | . . . . . . . Exploded 7 | . 3 1 . . 4 7 Melee 1 | . . . . . . 1 Uniques/NPCs Destroyed . | . . . . . . . Combat | -11 -10 -10 -10 -9 -8 -8 -------- Run | Yrd Mat Min Exi Min Mat Sto Hostile Shots Fired 307 | . 46 23 . 3 119 116 Missed 80 | . 9 6 . 3 28 34 Hits 227 | . 37 17 . . 91 82 Melee 10 | . . . . . . 10 Projectile 217 | . 37 17 . . 91 72 AOE 18 | . . . . . 1 17 Critical Strikes 4 | . . . . . 4 . Part Disruptions 1 | . . 1 . . . . Damage Taken 3993 | . 412 238 . . 1443 1900 Core 672 | . 76 42 . . 225 329 Absorbed by Shields . | . . . . . . . Regen/Repaired (Parts) 26 | . . . . . . 26 Core Remaining (%) 76 | 100 . . . 52 . . Volleys Fired 147 | 4 36 19 . 10 34 44 Largest 2 | 2 2 2 . 2 2 2 Hottest 133 | 70 130 130 . 85 133 126 Shots Fired 270 | 7 68 32 . 23 64 76 Gun 235 | 7 64 29 . 23 46 66 Cannon 16 | . . . . . 16 . Launcher 19 | . 4 3 . . 2 10 Special . | . . . . . . . Kinetic 81 | 4 28 7 . 13 9 20 Thermal 170 | 3 36 22 . 10 53 46 Explosive 19 | . 4 3 . . 2 10 Electromagnetic . | . . . . . . . Robot Hit Streak 19 | 3 9 17 . 18 13 19 Robot Miss Streak 6 | 1 2 6 . 6 6 3 Penetration Max . | . . . . . . . Secondary Targets 5 | . . . . 1 2 2 Max Gunslinging Chain 1 | . . . . 1 1 1 Shots Hit Robots 214 | 4 45 25 . 17 51 72 Core Hits 238 | 3 35 33 . 18 75 74 Critical Kills . | . . . . . . . Critical Parts Destroyed . | . . . . . . . Critical Strikes 3 | . 1 . . . . 2 Burn 3 | . 1 . . . . 2 Melee Attacks 25 | . . . . . . 25 Impact . | . . . . . . . Slashing 25 | . . . . . . 25 Piercing . | . . . . . . . Sneak Attacks 4 | . . . . . . 4 Combat Hostiles . | . . . . . . . Follow-up Attacks . | . . . . . . . Damage Inflicted 5851 | 51 887 510 . 265 1285 2853 Guns 2671 | 51 554 324 . 248 606 888 Cannons 207 | . . . . . 207 . Explosions 2312 | . 323 144 . . 423 1422 Melee 543 | . . . . . . 543 Ramming 118 | . 10 42 . 17 49 . Kinetic 721 | 14 225 64 . 112 74 232 Thermal 2178 | 37 329 281 . 136 739 656 Explosive 2291 | . 323 123 . . 423 1422 Electromagnetic . | . . . . . . . Impact . | . . . . . . . Slashing 543 | . . . . . . 543 Piercing . | . . . . . . . Highest Corruption 4 | . 4 4 4 4 . 4 Average Corruption 3 | . 2 4 4 4 . 4 Corruption Purged . | . . . . . . . Corruption Blocked . | . . . . . . . Effects 75 | . 18 21 4 22 . 10 Message Errors 13 | . 3 6 . 4 . . Matter Fused 15 | . 2 4 1 5 . 3 Heat Flow Errors 11 | . 4 1 1 2 . 3 Energy Discharges 13 | . 5 3 2 2 . 1 Data Loss (minor) 13 | . 3 4 . 5 . 1 Data Loss (major) 2 | . . 1 . 1 . . Misfires 7 | . 1 1 . 3 . 2 Alerts 1 | . . 1 . . . . Overload Shots . | . . . . . . . Overflow Damage 142 | . 30 11 . . 23 78 Projectiles . | . . . . . . . Explosions 142 | . 30 11 . . 23 78 Melee . | . . . . . . . Knockbacks 2 | . . . . . 2 . Impact 2 | . . . . . 2 . Kinetic . | . . . . . . . Secondary . | . . . . . . . Self-Inflicted Damage 92 | . . . . . 22 70 Shots 3 | . . . . . 1 2 Rammed 22 | . 3 6 . 4 9 . Targets Rammed 24 | . 3 6 . 5 9 1 Kicked . | . . . . . . . Crushed 2 | . . . . 1 . 1 Highest Temperature 369 | 27 274 345 198 260 369 306 Average Temperature 89 | 14 52 127 104 75 106 95 Received Heat Transfer 1311 | . 210 145 . . 642 314 Effects 2 | . . 1 . . 1 . Interference 2 | . . 1 . . 1 . Siege Activations . | . . . . . . . Martial Activations . | . . . . . . . Shielding Activations . | . . . . . . . Robots Disrupted . | . . . . . . . Combat Hostiles . | . . . . . . . Robots Corrupted . | . . . . . . . Combat Hostiles . | . . . . . . . Parts Fried . | . . . . . . . Impact Corruptions . | . . . . . . . Robots Melted 1 | . . . . . . 1 Combat Hostiles . | . . . . . . . Parts Melted 2 | . . . . . 1 1 Heat Transferred 3630 | 111 828 365 . 170 1030 1126 Parts Sabotaged . | . . . . . . . Parts Stolen . | . . . . . . . Parts Stripped . | . . . . . . . Power Chain Reactions . | . . . . . . . Alert | -11 -10 -10 -10 -9 -8 -8 ------- Run | Yrd Mat Min Exi Min Mat Sto Maximum Alert Level 1 | . 1 . . . 1 1 Low Security (%) 84 | 100 61 100 . 100 66 84 Level 1 15 | . 38 . . . 33 15 Level 2 . | . . . . . . . Level 3 . | . . . . . . . Level 4 . | . . . . . . . Level 5 . | . . . . . . . High Security . | . . . . . . . Max Security . | . . . . . . . Peak Influence 283 | 10 283 64 . 71 257 239 Initial 79 | . . 64 . . . 79 Average 75 | 1 156 8 . 17 121 112 Influence Increases 2159 | 10 572 126 . 275 580 596 Destroy 0b10 Robot/C 1220 | . 320 60 . 180 380 280 Destroy 0b10 Robot/NC 130 | 10 10 5 . 20 25 60 Destroy Leader 298 | . 64 20 . 40 96 78 Allied During Kill 44 | . . . . 35 9 . Successful Hack 38 | . 12 . . . 5 21 Select Force Hacks 60 | . 60 . . . . . Disable Machine 120 | . 30 15 . . 15 60 Destroy Structure 129 | . 31 11 . . 20 67 Lose Combat Pursuer 120 | . 45 15 . . 30 30 Influence Decreases 2147 | 10 406 292 . 274 392 773 Entered New Map 213 | . . 102 . . 1 110 Time Decay 1553 | 10 396 180 . 254 310 403 Lost Part 160 | . 10 10 . . 30 110 Lost Ally 71 | . . . . 20 51 . Purge Threat 150 | . . . . . . 150 Squads Dispatched 10 | . 4 . . 1 5 . Investigation 4 | . 3 . . . 1 . Extermination . | . . . . . . . Reinforcement 5 | . 1 . . 1 3 . Assault . | . . . . . . . Garrison 1 | . . . . . 1 . Intercept . | . . . . . . . Searches Triggered . | . . . . . . . Construction Impeded 2 | . . . . 1 1 . Haulers Reinforced . | . . . . . . . Active Scanning Responses . | . . . . . . . Cargo Convoy Interrupts . | . . . . . . . Stealth | -11 -10 -10 -10 -9 -8 -8 --------- Run | Yrd Mat Min Exi Min Mat Sto Distress Signals 13 | . 3 3 . . 2 5 Communications Jammed . | . . . . . . . Distress Signals . | . . . . . . . Times Spotted 111 | . 27 8 . 7 30 39 Peak Tracking Total 10 | . 5 2 . 3 7 10 Tactical Retreats 9 | . 2 1 . . 2 4 Traps | -11 -10 -10 -10 -9 -8 -8 ------- Run | Yrd Mat Min Exi Min Mat Sto Traps Triggered 8 | . 5 . . . 1 2 Indirectly . | . . . . . . . Trap Hack Attempts . | . . . . . . . Triggered . | . . . . . . . Disarmed . | . . . . . . . Reprogrammed . | . . . . . . . Reused . | . . . . . . . Traps Extracted . | . . . . . . . Installed . | . . . . . . . Triggered . | . . . . . . . Machines | -11 -10 -10 -10 -9 -8 -8 ---------- Run | Yrd Mat Min Exi Min Mat Sto Machines Disabled 8 | . 2 1 . . 1 4 Max in Single Turn 2 | . 2 1 . . 1 1 Machines Repaired . | . . . . . . . Machines Dismantled . | . . . . . . . Machines Sabotaged . | . . . . . . . Overloaded Fab Kills . | . . . . . . . Hacking | -11 -10 -10 -10 -9 -8 -8 --------- Run | Yrd Mat Min Exi Min Mat Sto Machines Accessed 15 | . 5 . 1 . 4 5 Terminals 10 | . 3 . . . 3 4 Fabricators . | . . . . . . . Repair Stations 1 | . . . . . . 1 Recycling Units 2 | . 2 . . . . . Scanalyzers . | . . . . . . . Garrison Access 1 | . . . . . 1 . Total Hacks 39 | . 13 . 1 . 13 12 Successful 12 | . 4 . 1 . 1 6 Failed 27 | . 9 . . . 12 6 Catastrophic 1 | . 1 . . . . . Database Lockouts . | . . . . . . . Manual 24 | . 13 . . . 9 2 Terminals 30 | . 11 . . . 9 10 Fabricators . | . . . . . . . Repair Stations 2 | . . . . . . 2 Recycling Units 2 | . 2 . . . . . Scanalyzers . | . . . . . . . Garrison Access 4 | . . . . . 4 . Terminal Hacks 6 | . 1 . 1 . . 4 Record 1 | . . . 1 . . . Part Schematic 1 | . 1 . . . . . Open Door 2 | . . . . . . 2 Unreport Threat 1 | . . . . . . 1 Locate Traps 1 | . . . . . . 1 Fabricator Hacks . | . . . . . . . Repair Station Hacks 2 | . . . . . . 2 Scan Component 1 | . . . . . . 1 Repair 1 | . . . . . . 1 Recycling Unit Hacks . | . . . . . . . Scanalyzer . | . . . . . . . Garrison Access Hacks . | . . . . . . . Unauthorized Hacks 4 | . 3 . . . 1 . Terminals 2 | . 1 . . . 1 . Botnet 2 | . 1 . . . 1 . Fabricators . | . . . . . . . Repair Stations . | . . . . . . . Recycling Units 2 | . 2 . . . . . Tunnel 2 | . 2 . . . . . Scanalyzers . | . . . . . . . Garrison Access . | . . . . . . . Data Cores Recovered . | . . . . . . . Used . | . . . . . . . Hacking Detections 9 | . 3 . . . 4 2 Full Trace Events 1 | . . . . . 1 . Feedback Events . | . . . . . . . Feedback Blocked . | . . . . . . . Robot Schematics Acquired . | . . . . . . . Robots Built . | . . . . . . . Authchips . | . . . . . . . Time . | . . . . . . . Total Robot Build Rating . | . . . . . . . Part Schematics Acquired 1 | . 1 . . . . . Parts Built . | . . . . . . . Authchips . | . . . . . . . Time . | . . . . . . . Total Part Build Rating . | . . . . . . . Part Studies Acquired . | . . . . . . . Parts Repaired 1 | . . . . . . 1 Time 108 | . . . . . . 108 Parts Recycled . | . . . . . . . Recycled Matter . | . . . . . . . Retrieved Matter . | . . . . . . . Retrieved Components . | . . . . . . . Parts Scanalyzed . | . . . . . . . Part Schematics Acquired . | . . . . . . . Parts Damaged . | . . . . . . . Bothacking | -11 -10 -10 -10 -9 -8 -8 ------------ Run | Yrd Mat Min Exi Min Mat Sto Used RIF Installer . | . . . . . . . Robots Hacked . | . . . . . . . Non-combat . | . . . . . . . Combat . | . . . . . . . Robot Hacks Applied . | . . . . . . . Relay Couplers Released . | . . . . . . . Fabnet Peak Effective % . | . . . . . . . Robots Rewired . | . . . . . . . Allies Hacked . | . . . . . . . Hacks Repelled . | . . . . . . . Allies | -11 -10 -10 -10 -9 -8 -8 -------- Run | Yrd Mat Min Exi Min Mat Sto Total Allies 5 | . . 3 . 2 . . Largest Group 4 | . . 3 3 4 3 . Highest-Rated Group 78 | . . 40 40 78 55 . Highest-Rated Ally 31 | . . 16 16 31 31 . Total Orders . | . . . . . . . Ally Attacks 61 | . . . . 43 18 . Total Damage 771 | . . . . 456 315 . Kills 11 | . . . . 7 4 . Allies Corrupted . | . . . . . . . Allies Melted . | . . . . . . . Intel | -11 -10 -10 -10 -9 -8 -8 ------- Run | Yrd Mat Min Exi Min Mat Sto Active Infowar (turns) 4682 | 52 1013 1214 202 1072 412 717 Sensors 391 | . . . . . . 391 Seismic 4291 | 52 1013 1214 202 1072 412 326 Robot Analysis Total . | . . . . . . . Derelict Logs Recovered 3 | . . 2 . 1 . . Drone Launches . | . . . . . . . Drone Recoveries . | . . . . . . . Exploration | -11 -10 -10 -10 -9 -8 -8 ------------- Run | Yrd Mat Min Exi Min Mat Sto Turns Passed 5470 | 143 1013 1260 202 1072 814 966 Spaces Moved 2793 | 78 512 711 127 595 381 389 Core 4 | 4 . . . . . . Treads 2560 | 74 512 711 127 595 381 160 Legs . | . . . . . . . Wheels 229 | . . . . . . 229 Hover . | . . . . . . . Flight . | . . . . . . . Fastest Speed 50 | 50 160 160 160 160 160 120 Average Speed 157 | 154 160 162 160 160 161 140 Slowest Speed 240 | 160 160 240 160 160 162 240 Overloaded Moves . | . . . . . . . Propulsion Burnouts . | . . . . . . . Robots Hopped . | . . . . . . . Potential Cave-ins 3 | . . . . . . 3 Cave-ins Triggered . | . . . . . . . Exploration Rate (%) 58 | 5 68 97 49 96 37 60 Regions Visited 6 Branch Regions 4 Pre-discovered Areas 3 | . 2 . 1 . . . Known Exits Taken . | . . . . . . . Unknown Exits Taken 6 | 1 1 1 1 1 1 . Scrap Searched 3 | . . 2 . 1 . . Spaces Dug 7 | . . . . . . 7 Terrain Destroyed 130 | . 28 11 . . 19 72 Melee 7 | . . . . . . 7 Projectile . | . . . . . . . AOE 123 | . 28 11 . . 19 65 Terrain Rammed . | . . . . . . . Walls Destroyed . | . . . . . . . Machines Disabled . | . . . . . . . Actions | -11 -10 -10 -10 -9 -8 -8 --------- Run | Yrd Mat Min Exi Min Mat Sto Total 3519 | 90 632 778 126 694 511 688 Wait 363 | . 59 35 . 74 33 162 Move 2787 | 77 511 710 126 594 380 389 Hop . | . . . . . . . Pick Up 35 | 1 9 1 . 5 11 8 Fast Attach 23 | 7 3 1 . . 4 8 Attach 15 | . 1 1 . . 6 7 Detach 3 | . . . . . 1 2 Swap 65 | 1 9 5 . 2 18 30 Drop 31 | . 1 . . 4 15 11 Fire 147 | 4 36 19 . 10 34 44 Melee 25 | . . . . . . 25 Ram . | . . . . . . . Kick . | . . . . . . . Crush 24 | . 3 6 . 5 9 1 Escape Stasis . | . . . . . . . Rewire 1 | . . . . . . 1 Trap . | . . . . . . . Miscellaneous . | . . . . . . . Route ------- -11/Scrapyard -10/Materials (discovered 3 exits: [*Mat x2] / [*Min]) -10/Mines (discovered 3 exits: [*Mat x2] / *Exi) -10/Exiles -9/Mines (discovered 2 exits: *Mat x2) -8/Materials (discovered 2 exits: Fac / *Sto) -8/Storage History --------- Turn | Location | Event 3 | -11/Scrapyard | Discovered new exit (range 15) 144 | -11/Scrapyard | Entered Materials 271 | -10/Materials | Discovered new exit (range 16) 336 | -10/Materials | Build established: Mutant 597 | -10/Materials | Discovered new exit (range 15) 927 | -10/Materials | Discovered new exit (range 14) 1157 | -10/Materials | Entered Mines 1170 | -10/Mines | Discovered new exit (range 6) 1229 | -10/Mines | Learned Materials stockpile data 1278 | -10/Mines | Assembled infested the area 1839 | -10/Mines | Learned 2 Materials zone layouts 1856 | -10/Mines | Discovered new exit (range 8) 1906 | -10/Mines | Deemed a non-threat by the Exiles lab entrance 1908 | -10/Mines | Discovered new exit (range 5) 1933 | -10/Mines | A weapon hastily lodged in a ceiling crevice suddenly fell to the ground 1975 | -10/Mines | Found a damaged Exp. Sensor Array with a note attached 1978 | -10/Mines | Found Prototype Device 2358 | -10/Mines | Assisted by bots powering up and referring to "LRC-V3" 2417 | -10/Mines | Entered Exiles 2417 | -10/Exiles | Accompanied by 3 allies 2457 | -10/Exiles | Met 8R-AWN 2483 | -10/Exiles | Met EX-HEX 2547 | -10/Exiles | Met EX-DEC 2560 | -10/Exiles | Learned location of Zion (-6) 2606 | -10/Exiles | Discovered new exit (range 10) 2619 | -10/Exiles | Entered Mines 2619 | -9/Mines | Accompanied by 3 allies 2816 | -9/Mines | Discovered new exit (range 6) 2823 | -9/Mines | Received a Rocket Launcher from a helpful Derelict 2846 | -9/Mines | Discovered new exit (range 2) 3097 | -9/Mines | Learned location of 1 exit from Materials 3691 | -9/Mines | Entered Materials 3691 | -8/Materials | Accompanied by 3 allies 3691 | -8/Materials | Evolved 4 slots: Propulsion x2, Utility x2 3692 | -8/Materials | Identified exit to Factory 3696 | -8/Materials | Led the pair of lost Derelicts to an unsafe place 3982 | -8/Materials | Garrison activated, responded to threat 4201 | -8/Materials | Lost 3 parts (1n1u1w) 4358 | -8/Materials | Discovered new exit (range 16) 4442 | -8/Materials | Build established: Scavenger-Mutant 4505 | -8/Materials | Entered Storage 4794 | -8/Storage | Assembled infested ambush trap array 4808 | -8/Storage | Core integrity fell below 50% 4862 | -8/Storage | Lost 3 parts (1p2u) 4865 | -8/Storage | Destroyed 11 combat bots 4916 | -8/Storage | Core integrity fell below 20% 4942 | -8/Storage | Lost 8 parts (4n2u2w) 4968 | -8/Storage | Identified Exp. Sensor Array 5372 | -8/Storage | Repaired Exp. Sensor Array? 5471 | -8/Storage | Destroyed by Explosive Trap Last Messages --------------- 05416_ K-01 Serf collects debris. 05420_ Sneak attack on K-01 Serf. 05420_ K-01 Serf destroyed. 05422_ K-01 Serf collects debris. 05422_ Acquired 12 matter. 05426_ K-01 Serf collects debris. 05427_ Sneak attack on K-01 Serf. 05427_ K-01 Serf destroyed. 05430_ Acquired 19 matter. 05442_ System corrupted: FCS attempts to trigger Spread Laser. 05442_ System corrupted: Spread Laser misfires. 05443_ Storage Shell breached. 05449_ Dropped Lgt. Treads. 05450_ Acquired Lgt. Treads. 05458_ Acquired Arm. Wheel. 05470_ R-06 Scavenger inserts Wheel into recycling unit. 05471_ Triggered Explosive Trap. 05471_ An explosion rips through the floor. Map ----- +----------------------------------------------------+ | | | | | | | | | | | | | | | | | | | | | | | | | | | ?????????????????????????????????????????? | | ?????????????????????????????????????????? | | ?????????????????????????????????????????? | | ?????????????????????????????????????????? | | ?????????????????????????????????????????? | | ?????????????????????????????????????????? | | ?????????????????????????????????????????? | | ?????????????????????????????????????????? | | ?????????????????????????????????????????? | | ????????????####+######+#????????????????? | | ????????????? #????????????????? | | ??????????????? +????????????????? | | ????????????????#@ #????????????????? | | ???????########## !* #????????????????? | | ???????# + !* #????????????????? | | ???????# # !* ####?????????????? | | ???????# """" # """#?????????????? | | ?????????"]["" # rY"#?????????????? | | ?????????"/*""" # !! """#?????????????? | | ?????????"""!]" # ! #### #???????????? | | ???????????"=! + #???????????? | | ???????????"""" # a +???????????? | | ????????????? ## ##T########???????????? | | ????????????###### #?##??????????????????? | | ?????????????????# #?????????????????????? | | ?????????????????# #?????????????????????? | | ?????????????????# #?????????????????????? | | ?????????????????# #?????????????????????? | | ?????????????????# #?????????????????????? | | ????????????###??#*#?????????????????????? | | ????????#####T##?# #????###??????????????? | | ????????#** #?#!######T##?????????????? | | ????????#*** #?#k##] #?????????????? | | ????????##### #?#=##]]] #?????????????? | | ??????????###+##?# ###### #??#########??? | | ########### ####/#######+##?#"""#"""#??? | | # """"" # + + ###"T"#"T"#### | +----------------------------------------------------+ Best States ------------- Heat Dissipation 45 Energy Generation 17 Energy Capacity 300 Matter Stores 300 Matter Capacity 300 Sight Range 16 Robot Scan Range 20 Terrain Scan Density 10 Armor Coverage 750 Evasion (%) 40 Recoil Reduction 4 Offensive Hacking 10 Item Schematics ----------------- Hcp. Storage Unit | -10/Materials | Hacked Robot Schematics ------------------ None Fabricated ------------ Nothing Repaired ---------- Exp. Sensor Array | 10% | -8/Storage Studied --------- None Alien Tech Used ----------------- None Achievements -------------- None Challenges ------------ None Game ------ Seed FlyingElectrostormPlating Manual? 0 Play Time 00:35:46 Cumulative 105.9 hours Start 2026.08.25 @ 20:22:26 End 2026.08.25 @ 20:56:24 Sessions 1 Manual Loads 0 Difficulty Rogue Special Mode None Game No. 53 Rogue 53 Adventurer 0 Explorer 0 Win Type - Total 4 Types 1/0/1/0/0/0/0/1/0/1 Lore% 71 Gallery% 61 Achievement% 50 Wizard Run 0 Options --------- Layout 1 ASCII 0 Keyboard 1 Movement Arrows Keybinds 0 Fullscreen 2 Font 24/Smallcaps Map View 50x35 Zoom Use 0% Tactical HUD 1 Map Filters NONE Filters NONE Steam 1 RUN: 23eebbb3-4d06-498c-8750-2e152d9e7a10